Cogmind - Beta 13 @@@ ROGUE MODE // 2024.03.15 @ 18:50:24 Player: Baxter Result: Destroyed by G-34 Mercenary with Small Laser Performance ------------- Evolutions (0) 0 Regions Visited (1) 200 Robots Destroyed (15) 75 Value Destroyed (359) 359 Prototype IDs (0) 0 Alien Tech Used (0) 0 Bonus (0) 0 TOTAL SCORE: 634 Bonus ------- None Cogmind --------- Core Integrity 0/250 Matter 294/300 Energy 246/250 System Corruption 0% Temperature Cool (8) Movement Walking (120) Location -10/Materials Parts ------- > --- POWER (1) -------- Ion Engine > --- PROPULSION (2) --- Aluminum Leg Aluminum Leg > --- UTILITY (2) ------ Small Storage Unit > --- WEAPON (2) ------- Assault Rifle Light Assault Rifle > --- INVENTORY (8) ---- Ion Engine Light Nuclear Core Light Treads Light Treads Aluminum Leg Wheel Wheel Light Cannon Peak State ------------ > --- POWER ------------ Ion Engine > --- PROPULSION ------- Light Treads Aluminum Leg > --- UTILITY ---------- Small Storage Unit Improved Terrain Scanner > --- WEAPON ----------- Medium Laser Light Assault Rifle > --- INVENTORY -------- Ion Engine Light Nuclear Core Light Treads Aluminum Leg Wheel Wheel Compact Wheel Medium Laser [Rating: 10] Favorites ----------- Power Ion Engine Engine Ion Engine Propulsion Aluminum Leg Treads Light Treads Leg Aluminum Leg Utility Small Storage Unit Device Improved Terrain Scanner Storage Small Storage Unit Weapon Light Assault Rifle Energy Gun Medium Laser Ballistic Gun Light Assault Rifle Build | -11 -10 ------- Run | Yrd Mat Slots Evolved . | . . Power . | . . Propulsion . | . . Utility . | . . Weapon . | . . Parts Attached 18 | 7 11 Power 3 | 1 2 Engine 3 | 1 2 Core . | . . Reactor . | . . Propulsion 8 | 2 6 Treads 1 | . 1 Leg 7 | 2 5 Wheel . | . . Hover . | . . Flight . | . . Utility 2 | 2 . Device 1 | 1 . Storage 1 | 1 . Processor . | . . Hackware . | . . Protection . | . . Artifact . | . . Weapon 5 | 2 3 Energy Gun 1 | 1 . Energy Cannon . | . . Ballistic Gun 4 | 1 3 Ballistic Cannon . | . . Launcher . | . . Special Weapon . | . . Impact Weapon . | . . Slashing Weapon . | . . Piercing Weapon . | . . Special Melee Weapon . | . . Unidentified Prototypes . | . . Parts Lost 2 | . 2 Power 1 | . 1 Propulsion . | . . Utility 1 | . 1 Weapon . | . . Highest Loss Streak 1 | . 1 To Critical Strikes 1 | . 1 Average Slot Usage (%) 88 | . 88 Engine 13 | . 13 Treads 1 | . 1 Leg 26 | . 26 Device 4 | . 4 Storage 14 | . 14 Energy Gun 5 | . 5 Ballistic Gun 22 | . 22 Naked Turns . | . . Heaviest Build 14 | 12 14 Greatest Support 20 | 20 20 Greatest Overweight (x) 2 | 2 1 Average Overweight (x) . | . . Largest Inventory Capacity 8 | 8 8 Average Capacity 7 | 7 8 Most Carried 8 | 8 8 Average Carried 7 | 4 7 Final Capacity 8 | 8 8 Final Carried 8 | 7 8 Class Distribution -------------------- 66% | Scavenger-Mutant 33% | Mutant Dominant Class ---------------- Scavenger-Mutant | -10/Materials Resources | -11 -10 ----------- Run | Yrd Mat Matter Collected 476 | 221 255 Remotely . | . . Salvage Created 520 | 81 439 Parts 27 | 4 23 Haulers Intercepted 1 | . 1 Recyclers Shooed . | . . Parts Field Recycled . | . . Retrieved Matter . | . . Parts Self-Destructed . | . . Prevented . | . . Kills | -11 -10 ------- Run | Yrd Mat Combat Hostiles Destroyed 11 | . 11 Guns 11 | . 11 Classes Destroyed 6 | 2 4 Tunneler 1 | 1 . Hauler 1 | . 1 Recycler 1 | 1 . Operator 1 | . 1 Swarmer 3 | . 3 Grunt 8 | . 8 Best Kill Streak 4 | 2 4 Combat Bots Only 4 | . 4 Max Kills in Single Turn 1 | 1 1 Gunslinging . | . . Exploded . | . . Melee . | . . Uniques/NPCs Destroyed . | . . Combat | -11 -10 -------- Run | Yrd Mat Hostile Shots Fired 117 | . 117 Missed 32 | . 32 Damage Taken 890 | . 890 Core 252 | . 252 Absorbed by Shields . | . . Core Remaining (%) 100 | 100 . Volleys Fired 65 | 9 56 Largest 2 | 1 2 Hottest 70 | 20 70 Shots Fired 121 | 9 112 Gun 121 | 9 112 Cannon . | . . Launcher . | . . Special . | . . Kinetic 96 | 9 87 Thermal 25 | . 25 Explosive . | . . Electromagnetic . | . . Robot Hit Streak 17 | 6 17 Robot Miss Streak 5 | 1 5 Penetration Max . | . . Secondary Targets 3 | . 3 Max Gunslinging Chain 1 | . 1 Shots Hit Robots 76 | 8 68 Core Hits 33 | 4 29 Critical Kills . | . . Critical Parts Destroyed . | . . Critical Strikes 2 | . 2 Burn 2 | . 2 Melee Attacks . | . . Impact . | . . Slashing . | . . Piercing . | . . Sneak Attacks . | . . Combat Hostiles . | . . Follow-up Attacks . | . . Damage Inflicted 724 | 64 660 Guns 724 | 64 660 Cannons . | . . Explosions . | . . Melee . | . . Ramming . | . . Kinetic 511 | 64 447 Thermal 213 | . 213 Explosive . | . . Electromagnetic . | . . Impact . | . . Slashing . | . . Piercing . | . . Highest Corruption . | . . Average Corruption . | . . Corruption Purged . | . . Corruption Blocked . | . . Overload Shots . | . . Overflow Damage . | . . Projectiles . | . . Explosions . | . . Melee . | . . Knockbacks . | . . Impact . | . . Kinetic . | . . Secondary . | . . Self-Inflicted Damage . | . . Shots . | . . Rammed . | . . Targets Rammed 1 | . 1 Kicked 1 | . 1 Crushed . | . . Highest Temperature 180 | . 180 Average Temperature 62 | . 62 Received Heat Transfer 399 | . 399 Siege Activations . | . . Robots Corrupted . | . . Combat Hostiles . | . . Parts Fried . | . . Impact Corruptions . | . . Robots Melted . | . . Combat Hostiles . | . . Parts Melted . | . . Heat Transferred 777 | . 777 Parts Sabotaged . | . . Parts Stolen . | . . Parts Stripped . | . . Power Chain Reactions . | . . Alert | -11 -10 ------- Run | Yrd Mat Peak Influence 273 | 10 273 Initial 6 | . 6 Average 116 | 3 134 Maximum Alert Level 1 | . 1 Low Security (%) 79 | 100 76 Level 1 20 | . 23 Level 2 . | . . Level 3 . | . . Level 4 . | . . Level 5 . | . . High Security . | . . Max Security . | . . Squads Dispatched 3 | . 3 Investigation 1 | . 1 Extermination . | . . Reinforcement 2 | . 2 Assault . | . . Garrison . | . . Intercept . | . . Searches Triggered . | . . Construction Impeded . | . . Haulers Reinforced . | . . Active Scanning Responses . | . . Cargo Convoy Interrupts . | . . Stealth | -11 -10 --------- Run | Yrd Mat Distress Signals 2 | . 2 Communications Jammed . | . . Distress Signals . | . . Times Spotted 23 | . 23 Peak Tracking Total 6 | . 6 Tactical Retreats . | . . Traps | -11 -10 ------- Run | Yrd Mat Traps Triggered 1 | . 1 Indirectly . | . . Trap Hack Attempts . | . . Triggered . | . . Disarmed . | . . Reprogrammed . | . . Reused . | . . Traps Extracted . | . . Installed . | . . Triggered . | . . Machines | -11 -10 ---------- Run | Yrd Mat Machines Disabled . | . . Max in Single Turn . | . . Machines Repaired . | . . Machines Dismantled . | . . Machines Sabotaged . | . . Overloaded Fab Kills . | . . Hacking | -11 -10 --------- Run | Yrd Mat Machines Accessed 1 | . 1 Terminals 1 | . 1 Fabricators . | . . Repair Stations . | . . Recycling Units . | . . Scanalyzers . | . . Garrison Access . | . . Total Hacks 4 | . 4 Successful 2 | . 2 Failed 2 | . 2 Catastrophic . | . . Database Lockouts . | . . Manual 4 | . 4 Terminals 4 | . 4 Fabricators . | . . Repair Stations . | . . Recycling Units . | . . Scanalyzers . | . . Garrison Access . | . . Terminal Hacks 1 | . 1 Robot Analysis 1 | . 1 Fabricator Hacks . | . . Repair Station Hacks . | . . Recycling Unit Hacks . | . . Scanalyzer . | . . Garrison Access Hacks . | . . Unauthorized Hacks 1 | . 1 Terminals 1 | . 1 Botnet 1 | . 1 Fabricators . | . . Repair Stations . | . . Recycling Units . | . . Scanalyzers . | . . Garrison Access . | . . Data Cores Recovered . | . . Used . | . . Hacking Detections 1 | . 1 Full Trace Events . | . . Feedback Events . | . . Feedback Blocked . | . . Robot Schematics Acquired . | . . Robots Built . | . . Authchips . | . . Time . | . . Total Robot Build Rating . | . . Part Schematics Acquired . | . . Parts Built . | . . Authchips . | . . Time . | . . Total Part Build Rating . | . . Parts Repaired . | . . Time . | . . Parts Recycled . | . . Recycled Matter . | . . Retrieved Matter . | . . Retrieved Components . | . . Parts Scanalyzed . | . . Part Schematics Acquired . | . . Parts Damaged . | . . Bothacking | -11 -10 ------------ Run | Yrd Mat Used RIF Installer . | . . Robots Hacked . | . . Non-combat . | . . Combat . | . . Robot Hacks Applied . | . . Relay Couplers Released . | . . Fabnet Peak Effective % . | . . Robots Rewired . | . . Allies Hacked . | . . Hacks Repelled . | . . Allies | -11 -10 -------- Run | Yrd Mat Total Allies . | . . Largest Group . | . . Highest-Rated Group . | . . Highest-Rated Ally . | . . Total Orders . | . . Ally Attacks . | . . Total Damage . | . . Kills . | . . Allies Corrupted . | . . Allies Melted . | . . Intel | -11 -10 ------- Run | Yrd Mat Robot Analysis Total 1 | . 1 Derelict Logs Recovered . | . . Drone Launches . | . . Drone Recoveries . | . . Exploration | -11 -10 ------------- Run | Yrd Mat Turns Passed 675 | 92 583 Spaces Moved 370 | 52 318 Core 11 | 11 . Treads 6 | . 6 Legs 353 | 41 312 Wheels . | . . Hover . | . . Flight . | . . Fastest Speed 50 | 50 120 Average Speed 121 | 112 122 Slowest Speed 190 | 150 190 Overloaded Moves . | . . Propulsion Burnouts . | . . Robots Hopped . | . . Cave-ins Triggered . | . . Exploration Rate (%) 18 | 3 33 Regions Visited 1 Branch Regions . Pre-discovered Areas . | . . Known Exits Taken . | . . Unknown Exits Taken 1 | 1 . Scrap Searched . | . . Spaces Dug . | . . Terrain Destroyed . | . . Melee . | . . Projectile . | . . AOE . | . . Terrain Rammed . | . . Walls Destroyed . | . . Machines Disabled . | . . Actions | -11 -10 --------- Run | Yrd Mat Total 492 | 75 417 Wait 18 | . 18 Move 369 | 51 318 Hop . | . . Pick Up 11 | 8 3 Fast Attach 8 | 6 2 Attach 1 | 1 . Detach . | . . Swap 9 | . 9 Drop 10 | . 10 Fire 65 | 9 56 Melee . | . . Ram . | . . Kick 1 | . 1 Crush . | . . Escape Stasis . | . . Rewire . | . . Trap . | . . Miscellaneous . | . . Route ------- -11/Scrapyard -10/Materials (discovered 1 exit: [*Mat]) History --------- Turn | Location | Event 19 | -11/Scrapyard | Discovered new exit (range 16) 93 | -11/Scrapyard | Entered Materials 275 | -10/Materials | Core integrity fell below 50% 594 | -10/Materials | Build established: Scavenger-Mutant 613 | -10/Materials | Discovered new exit (range 9) 664 | -10/Materials | Core integrity fell below 20% 676 | -10/Materials | Destroyed by G-34 Mercenary with Small Laser Last Messages --------------- Chamber. 00569_ R-06 Scavenger inserts Lgt. Assault Rifle into recycling unit. 00570_ Recycling unit begins recycling process. 00580_ Acquired 10 matter. 00613_ Dropped Med. Laser. 00613_ EXIT=FOUND 00614_ Acquired Lgt. Cannon. 00641_ Triggered Alarm Trap. 00641_ An alarm sounds. 00641_ ALERT: Alarm triggered, dispatching investigation squad. 00643_ K-01 Serf cleans the Atomic Centrifuge. 00643_ R-06 Scavenger collects Med. Laser. 00655_ U-05 Engineer lays Concrete. 00661_ Kicked G-34 Mercenary. 00668_ G-34 Mercenary destroyed. 00669_ R-06 Scavenger collects Sml. Laser. 00671_ Acquired 30 matter. 00674_ R-06 Scavenger collects Aluminum Leg. Map ----- +----------------------------------------------------+ | | | | | | | | | ????????????????????????????????????????????##??## | | ????????????????????????????????????????????# | | ???????????????????????????????#????????????# """ | | ???????????????????????????????# ??"""??#???# """ | | ???????????????????????????????# """"" #???#! """ | | ???????????????????????????????# """"" #???# | | ???????????????????????????????# """"" #????? | | ???????????????????????????????# """"" #??????? | | ???????????????????????????????# """"" #??????### | | ???????????????????????????????# #??????# | | ??????????????????????##############+########### | | ??????????????????????# ## #?# | | ??????????????????????# < ## ### | | ??????????????????????# ## + ########## | | ??????????????????????# ## ### ## # | | ??????????????????????# ## #?# ## """ # | | ??????????????????????# ## #?# ## """ # | | ?????????????????????## ## ### ## """ # | | ??? ????????????# ###+### # # | | ??? g ####### g r # + | | ??????# g r # # | | ??????? """ ####### @ # # | | ?????????????????????# ###+### ########## | | ?????????????????????######## ## ##????# # | | ????????????????????????????# ## #????## + | | ????????????????????????????# ## #?????# # | | ????????????????????????????# ## #????#??#?# | | ????????????????????????????# #? #????????## | | ????????????????????????????# #? #???? ? ??# | | ????????????????????????????# #? #?????????# | | ????????????????????????????# #? #?????????# | | ????????????????????????????# #? #?????????# | | ????????????????????????????######? #?????????# | | ??????????????????????????????????? #??? ???#?# | | ???????????????????????????????????? ???#+####### | | ???????????????????????????????????? | | ???????????????????????????????????? | | ???????????????????????????????????? """"" | | ????????????????????????????????????##### """"" | | ????????????????????????????????????????# """"" | | ???????????????????????????????????????? """"" | | ????????????????????????????????????????# """"" | | ????????????????????????????????????????# | | ????????????????????????????????????????# | | ????????????????????????????????????????# ##### | | ????????????????????????????????????????#???#???# | +----------------------------------------------------+ Best States ------------- Heat Dissipation 25 Energy Generation 10 Energy Capacity 250 Matter Stores 300 Matter Capacity 300 Sight Range 16 Terrain Scan Range 16 Terrain Scan Density 10 Evasion (%) 55 Recoil Reduction 1 Item Schematics ----------------- None Robot Schematics ------------------ None Fabricated ------------ Nothing Alien Tech Used ----------------- None Achievements -------------- None Challenges ------------ None Game ------ Seed CombatAntigravShifter Manual? 0 Play Time 00:08:41 Cumulative 42.5 hours Start 2024.03.15 @ 18:45:29 End 2024.03.15 @ 18:50:24 Sessions 1 Manual Loads 0 Difficulty Rogue Special Mode None Game No. 44 Rogue 44 Adventurer 0 Explorer 0 Win Type - Total 0 Types 0/0/0/0/0/0/0/0/0 Lore% 22 Gallery% 30 Achievement% 26 Wizard Run 0 Options --------- Layout 1 ASCII 0 Keyboard 0 Movement Numpad Keybinds 0 Fullscreen 2 Font 24/X11 Map View 50x35 Zoom Use 0% Tactical HUD 1 Map Filters NONE Filters NONE Steam 0 RUN: 21c4da77-158c-4f57-be48-b0f5029496fa